bitfinex/quotes_ETHUSD_20250319
["timestamp","ask_amount","ask_price","bid_price","bid_amount"]
[1742415333452,0.0031152,2045.2,2045.0,10.46897]
[1742415333877,0.0031152,2045.2,2045.1,7.88973]
[1742415334092,0.0031152,2045.2,2045.1,8.67743]
[1742415334397,0.0031152,2045.2,2045.1,0.7877]
[1742415334601,0.0031152,2045.2,2045.1,4.88973]
[1742415334765,0.0031152,2045.2,2045.1,6.504389]
[1742415335595,0.0031152,2045.2,2045.1,12.564389]
[1742415336301,0.0031152,2045.2,2045.1,15.564389]
[1742415336475,0.0031152,2045.2,2045.1,16.114389]
[1742415336709,0.0031152,2045.2,2045.1,16.887489]
[1742415337059,0.0031152,2045.2,2045.1,16.337489]
[1742415338159,0.0031152,2045.2,2045.1,21.407489]
[1742415339577,0.0031152,2045.2,2045.1,21.957489]
[1742415341502,5.2e-06,2045.2,2045.1,21.957489]
[1742415342016,5.2e-06,2045.2,2045.1,16.887489]
[1742415342194,5.2e-06,2045.2,2045.1,21.956489]
[1742415345315,5.2e-06,2045.2,2045.1,21.955489]
[1742415346008,5.2e-06,2045.2,2045.1,16.887489]
[1742415346208,5.2e-06,2045.2,2045.1,21.954489]
[1742415349101,5.2e-06,2045.2,2045.1,26.00137699]
[1742415352231,0.8211,2046.4,2046.1,4.88718]
[1742415352396,4.86798799,2046.4,2046.2,15.327768]
[1742415352723,0.01,2046.4,2046.2,9.95195]
[1742415353833,0.01,2046.4,2046.3,4.88686]
[1742415354020,0.01,2046.4,2046.2,9.95195]
[1742415354329,5.71486,2046.3,2046.2,5.065]
[1742415354528,5.71486,2046.3,2046.0,4.8874]
[1742415354739,5.71486,2046.3,2046.1,5.065]
[1742415354923,4.04688799,2046.2,2046.1,5.064]
[1742415355293,8.93398799,2046.2,2046.1,5.064]
[1742415355528,4.04688799,2046.2,2046.1,5.064]
[1742415355722,0.828,2046.3,2046.1,9.95125]
[1742415355918,0.828,2046.3,2046.1,14.83845]
[1742415356103,0.828,2046.3,2046.2,4.8871]
[1742415356309,0.828,2046.3,2046.1,16.322295]
[1742415356504,0.828,2046.3,2046.1,11.435045]
[1742415356937,0.828,2046.3,2046.1,16.322285]
[1742415357231,0.828,2046.3,2046.1,11.435045]
[1742415357631,4.05688799,2046.4,2046.1,11.435045]
[1742415357835,4.05688799,2046.4,2046.2,4.88701]
[1742415358321,3.97917351,2046.4,2046.2,4.88701]
[1742415360505,0.7547,2046.5,2046.4,4.88663]
[1742415361439,4.04688799,2046.6,2046.4,4.88663]
[1742415361440,0.8273,2046.8,2046.7,4.88591]
[1742415361763,0.1225304,2047.0,2046.9,4.88543]
[1742415362535,0.1225304,2047.0,2046.9,7.88543]
[1742415362706,0.1225304,2047.0,2046.9,10.12287506]
[1742415363119,0.1225304,2047.0,2046.9,16.73286986]
[1742415363758,0.1225304,2047.0,2046.9,16.18286986]
[1742415364955,0.1225304,2047.0,2046.9,16.73286986]
[1742415365469,0.1225304,2047.0,2046.9,17.09843699]
[1742415366345,0.1225304,2047.0,2046.9,16.35843986]
[1742415366653,0.1225304,2047.0,2046.9,14.1209948]
[1742415368362,0.1225304,2047.0,2046.9,19.0064248]
[1742415369760,0.1225304,2047.0,2046.9,14.1209948]
[1742415369961,0.1225304,2047.0,2046.9,19.0064248]
[1742415371247,0.1225304,2047.0,2046.9,14.1209948]
[1742415371860,0.1225304,2047.0,2046.9,19.0064248]
[1742415373369,0.1225304,2047.0,2046.9,21.88420428]
[1742415375568,0.1225304,2047.0,2046.9,23.18920428]
[1742415378093,0.1225304,2047.0,2046.9,23.55970562]
[1742415379490,0.1225304,2047.0,2046.9,22.79970562]
[1742415383296,0.1225304,2047.0,2046.9,16.82320428]
[1742415383499,0.1225304,2047.0,2046.9,21.87820428]
[1742415383702,0.1225304,2047.0,2046.9,16.99277428]
[1742415384398,0.1225304,2047.0,2046.9,10.93277948]
[1742415385100,0.8968304,2047.0,2046.9,5.055]
[1742415385669,0.1225304,2047.0,2046.9,9.94043]
[1742415386516,0.1225304,2047.0,2046.9,5.055]
[1742415387071,0.1225304,2047.0,2046.9,9.94043]
[1742415391208,0.1225304,2047.0,2046.9,13.49043]
[1742415391383,0.1225304,2047.0,2046.9,16.29979646]
[1742415391905,4e-07,2047.0,2046.9,21.15287109]
[1742415392305,4e-07,2047.0,2046.9,12.41262939]
[1742415392503,4e-07,2047.0,2046.9,17.46562939]
[1742415393276,4e-07,2047.0,2046.9,21.50880402]
[1742415395222,4e-07,2047.0,2046.9,25.55197865]
[1742415396201,4e-07,2047.0,2046.9,21.50880402]
[1742415396798,4e-07,2047.0,2046.9,16.45580402]
[1742415397080,4e-07,2047.0,2046.9,20.95780402]
[1742415397280,4e-07,2047.0,2046.9,21.50780402]
[1742415398206,4e-07,2047.0,2046.9,21.50680402]
[1742415399007,4e-07,2047.0,2046.9,16.91362939]
[1742415399336,4e-07,2047.0,2046.9,21.50680402]
[1742415400085,4e-07,2047.0,2046.9,12.41262939]
[1742415400298,4e-07,2047.0,2046.9,16.10372939]
[1742415400612,4e-07,2047.0,2046.9,13.10372939]
[1742415400996,4e-07,2047.0,2046.9,16.10372939]
[1742415401195,4e-07,2047.0,2046.9,16.65372939]
[1742415402137,4e-07,2047.0,2046.9,20.69690402]
[1742415403334,4e-07,2047.0,2046.9,21.52200402]
[1742415408303,0.7605,2048.0,2047.6,4.88367]
[1742415408516,0.7605,2048.0,2047.9,4.88289]
[1742415411612,0.7605,2048.0,2047.8,4.88328]
[1742415411939,0.7605,2048.0,2047.9,5.048]
[1742415412245,0.0901011,2048.3,2048.2,8.43233]
[1742415412539,1.1e-06,2048.3,2048.2,12.47550463]
[1742415414390,1.1e-06,2048.3,2048.2,8.80561821]
[1742415418246,1.1e-06,2048.3,2048.2,13.85161821]
[1742415420752,1.1e-06,2048.3,2048.2,12.92833]
[1742415420955,1.1e-06,2048.3,2048.2,5.045]
[1742415420956,0.7900011,2048.3,2048.2,5.045]
[1742415421140,0.7900011,2048.3,2048.2,9.92733]
[1742415421453,0.7900011,2048.3,2048.2,12.92733]
[1742415423235,0.7900011,2048.3,2048.2,8.045]
[1742415424968,0.7900011,2048.3,2048.2,5.045]
[1742415425661,0.7900011,2048.3,2047.8,5.044]
[1742415425662,0.8126,2047.9,2047.8,5.044]
[1742415425864,0.8126,2047.9,2047.8,8.044]
[1742415426231,5.69575,2047.9,2047.3,4.88447]
[1742415426447,0.8111,2047.8,2047.5,4.88396]
[1742415426642,0.8111,2047.8,2047.6,4.88359]
[1742415426851,0.8111,2047.8,2047.7,4.88352]
[1742415427058,0.8111,2047.8,2047.6,9.76724]
[1742415427277,0.8111,2047.8,2047.7,4.88352]
[1742415427671,4.88236,2048.2,2047.9,4.88296]
[1742415427672,0.7872,2048.2,2047.9,4.88296]
[1742415427977,5.66986,2048.1,2047.9,5.043]
[1742415428557,0.7872,2048.1,2047.9,5.043]
[1742415430278,0.7872,2048.1,2047.9,9.92597]
[1742415431054,0.7872,2048.1,2047.9,5.043]
[1742415431247,0.7872,2048.1,2047.9,9.92602]
[1742415431651,0.7872,2048.1,2048.0,4.88281]
[1742415431851,0.7872,2048.1,2047.9,14.80876]
[1742415432050,0.7872,2048.1,2048.0,4.88281]
[1742415433060,0.7872,2048.1,2047.9,11.895079]
[1742415433261,0.7872,2048.1,2048.0,4.88281]
[1742415438390,4.82510894,2048.1,2047.9,5.043]
[1742415438697,4.82510894,2048.1,2047.9,9.92603]
[1742415439382,4.82510894,2048.1,2047.9,5.043]
[1742415439686,4.82510894,2048.1,2047.9,9.92596]
[1742415440582,4.82510894,2048.1,2048.0,4.88281]
[1742415440894,4.82510894,2048.1,2047.9,9.92591]
[1742415441894,4.82510894,2048.1,2047.9,5.043]
[1742415442100,0.7958,2048.0,2047.6,4.88376]
[1742415442302,4.83370894,2047.7,2047.6,9.92576]
[1742415442593,4.83370894,2047.7,2047.6,12.92576]
[1742415443402,4.83370894,2047.7,2047.6,3.0]
[1742415443581,4.83370894,2047.7,2047.5,14.80881]
[1742415444203,4.83370894,2047.7,2047.5,9.92483]
[1742415444609,4.83370894,2047.7,2047.5,9.92482]
[1742415444908,4.83370894,2047.7,2047.5,5.041]
[1742415445407,4.83370894,2047.7,2047.5,9.92485]
[1742415445608,4.52127983,2047.7,2047.3,3.0]
[1742415445800,0.7512,2047.4,2047.3,8.041]
[1742415446179,0.7512,2047.4,2047.3,12.92548]
[1742415446583,4.03790894,2047.7,2047.4,4.88423]
[1742415446584,0.7679,2047.6,2047.4,4.88423]
[1742415446791,0.7679,2047.6,2047.3,12.92547]
[1742415447020,0.7679,2047.6,2047.5,4.884]
[1742415447321,4.03790894,2048.1,2047.7,4.88329]
[1742415447508,4.03790894,2048.1,2047.8,9.92418]
[1742415447701,0.7979,2048.0,2047.8,9.92418]
[1742415448590,0.7979,2048.0,2047.8,14.8073]
[1742415448786,0.7979,2048.0,2047.9,4.88305]
[1742415449191,0.7979,2048.0,2047.8,9.92412]
[1742415449694,4.03790894,2047.9,2047.8,8.041]
[1742415450421,4.03790894,2047.9,2047.8,12.92423]
[1742415450633,0.7979,2048.0,2047.9,4.88305]
[1742415450844,4.03790894,2048.1,2047.9,4.88305]
[1742415450845,1.1e-06,2048.3,2048.2,4.88233]
[1742415450991,1.1e-06,2048.3,2048.2,12.97215119]
[1742415451346,1.1e-06,2048.3,2048.2,14.28613]
[1742415451931,1.1e-06,2048.3,2048.2,12.92333]
[1742415452628,1.1e-06,2048.3,2048.2,7.88233]
[1742415452826,0.7706011,2048.3,2048.2,8.04]
[1742415453034,0.7706011,2048.3,2048.2,5.04]
[1742415454402,6.6217431,2048.3,2048.2,5.04]
[1742415454603,1.7396531,2048.3,2048.2,5.04]
[1742415455005,6.6217431,2048.3,2048.2,5.04]
[1742415455608,4.88234,2048.2,2047.9,3.0]
[1742415455814,4.03790894,2048.1,2048.0,5.039]
[1742415456337,5.70681,2048.0,2047.8,5.039]
[1742415456535,4.03790894,2047.9,2047.8,5.039]
[1742415456704,8.92099894,2047.9,2047.5,4.884]
[1742415456904,4.03790894,2047.7,2047.6,5.039]
[1742415457321,4.79870894,2047.7,2047.6,5.039]
[1742415457637,4.79870894,2047.7,2047.5,4.88386]
[1742415457806,4.79870894,2047.7,2047.6,4.88376]
[1742415458199,4.03790894,2047.9,2047.7,4.88336]
[1742415458403,4.03790894,2048.2,2047.9,4.88288]
[1742415458623,4.83390894,2048.0,2047.9,5.039]
[1742415458815,9.71671894,2048.0,2047.9,5.039]
[1742415459228,4.83390894,2048.0,2047.7,4.88349]
[1742415459512,4.83390894,2048.0,2047.7,14.80588]
[1742415459707,4.83390894,2048.0,2047.7,4.88339]
[1742415459913,4.83390894,2048.0,2047.7,9.92239]
[1742415460542,8.92119894,2047.8,2047.7,5.039]
[1742415460709,4.03790894,2047.8,2047.7,5.039]
[1742415461744,11.22499193,2048.0,2047.7,5.039]
[1742415461905,11.22499193,2048.0,2047.7,9.9225]
[1742415462552,6.34218193,2048.0,2047.7,9.9225]
[1742415464808,0.796,2048.0,2047.8,4.88318]
[1742415465017,4.03790894,2048.1,2047.9,4.88305]
[1742415465215,4.03790894,2048.1,2047.8,4.88323]
[1742415465416,4.03790894,2048.1,2047.8,9.76635]
[1742415465715,4.03790894,2048.1,2047.9,4.88301]
[1742415466110,0.7585,2048.2,2048.1,4.88257]
[1742415466312,5.76923304,2048.3,2048.1,4.88257]
[1742415466313,5.76923304,2048.3,2048.2,4.88233]
[1742415466512,5.76923304,2048.3,2048.1,9.92057]
[1742415466932,5.76923304,2048.3,2048.1,9.92037]
[1742415467643,1.7313241,2048.3,2048.1,9.92037]
[1742415467811,5.76923304,2048.3,2048.1,9.92037]
[1742415468265,5.76923304,2048.3,2048.1,5.038]
[1742415468547,7.40221134,2048.3,2048.1,5.038]
[1742415469112,5.76923304,2048.3,2048.1,9.92048]
[1742415469512,5.76923304,2048.3,2048.1,9.92042]
[1742415469712,5.76923304,2048.3,2048.2,4.88233]
[1742415470549,1.7313241,2048.3,2048.2,7.88233]
[1742415470747,1.7313241,2048.3,2048.2,10.230613]
[1742415472243,1.7313241,2048.3,2048.2,12.91933]
[1742415473378,0.786,2048.8,2048.2,12.91933]
[1742415473379,0.1225304,2049.0,2048.3,3.8092]
[1742415473571,0.1225304,2049.0,2048.9,4.88066]
[1742415473776,0.1225304,2049.0,2048.9,12.91666]
[1742415475071,1.8538534,2049.0,2048.9,12.91666]
[1742415475280,1.8538534,2049.0,2048.9,14.777328]
[1742415479047,5.89176234,2049.0,2048.9,9.896668]
[1742415479254,5.89176234,2049.0,2048.9,3.0]
[1742415479617,5.89176234,2049.0,2048.8,5.034]
[1742415479779,4.16043934,2049.0,2048.8,5.034]
[1742415480343,0.1225304,2049.0,2048.8,9.91489]
[1742415480565,0.1225304,2049.0,2048.8,5.034]
[1742415481964,4.16043934,2049.0,2048.8,5.034]
[1742415482904,5.63080527,2049.0,2048.8,5.034]
[1742415483352,4.16043934,2049.0,2048.8,5.034]
[1742415483551,0.1225304,2049.0,2048.9,4.88066]
[1742415484672,0.1225304,2049.0,2048.8,5.034]
[1742415484860,4.03790894,2048.9,2048.8,5.034]
[1742415485198,4.80150894,2048.9,2048.8,5.034]
[1742415486561,0.7636,2048.9,2048.8,5.034]
[1742415487286,4.80150894,2048.9,2048.8,5.034]
[1742415487466,5.29391287,2048.9,2048.8,5.034]
[1742415488591,1.25600393,2048.9,2048.8,5.034]
[1742415488889,5.29391287,2048.9,2048.8,5.034]
[1742415489263,5.0031104,2049.0,2048.9,4.88066]
[1742415489264,0.1225304,2049.0,2048.9,4.88066]
[1742415489896,4.16043934,2049.0,2048.8,5.034]
[1742415490274,9.04101934,2049.0,2048.8,5.034]
[1742415490472,4.88066,2048.9,2048.8,5.034]
[1742415491423,9.84061934,2049.0,2048.8,5.034]
[1742415491721,14.72123934,2049.0,2048.8,5.034]
[1742415491900,9.84061934,2049.0,2048.8,5.034]
[1742415492326,14.72124934,2049.0,2048.8,5.034]
[1742415492501,4.88066,2048.9,2048.8,5.034]
[1742415493320,0.7996,2048.8,2048.1,0.7526]
[1742415493526,4.03790894,2048.3,2048.1,5.031]
[1742415494193,4.88185,2048.4,2048.1,5.031]
[1742415494690,4.03790894,2048.5,2048.2,4.88222]
[1742415494892,8.91923894,2048.7,2048.3,4.88207]
[1742415495098,13.80049894,2048.7,2048.3,4.88198]
[1742415495333,8.91916894,2048.7,2048.3,4.88198]
[1742415495543,13.80047894,2048.7,2048.3,4.88193]
[1742415495819,4.88138,2048.6,2048.2,9.439731]
[1742415496026,4.88138,2048.6,2048.2,14.321931]
[1742415496445,8.91916894,2048.7,2048.3,4.88204]
[1742415496594,8.91904894,2048.7,2048.3,6.8953031]
[1742415496915,4.03790894,2048.7,2048.4,4.88182]
[1742415497105,4.03790894,2048.7,2048.3,9.8952931]
[1742415497311,4.03790894,2048.7,2048.4,4.88177]
[1742415497635,4.03790894,2048.7,2048.4,6.35948031]
[1742415498934,4.03790894,2048.7,2048.4,1.47771031]
[1742415499140,4.03790894,2048.7,2048.5,5.031]
[1742415499634,4.03790894,2048.9,2048.7,4.88102]
[1742415500038,4.03790894,2048.9,2048.7,9.76203]
[1742415500227,0.1225304,2049.0,2048.8,4.88081]
[1742415500419,0.1225304,2049.0,2048.9,4.88066]
[1742415501037,0.1225304,2049.0,2048.9,10.66686]
[1742415501338,0.1225304,2049.0,2048.9,9.91066]
[1742415502040,0.1225304,2049.0,2048.9,12.91066]
[1742415502345,0.1225304,2049.0,2048.9,14.83991057]
[1742415502845,0.1225304,2049.0,2048.9,15.64141057]
[1742415509910,4e-07,2049.0,2048.9,16.19141057]
[1742415512142,4e-07,2049.0,2048.9,15.64141057]
[1742415512824,4e-07,2049.0,2048.9,15.63841057]
[1742415513020,4e-07,2049.0,2048.9,10.61141057]
[1742415513247,4e-07,2049.0,2048.9,14.83691057]
[1742415514571,4e-07,2049.0,2048.9,16.15991057]
[1742415515817,4e-07,2049.0,2048.9,15.60991057]
[1742415516858,4e-07,2049.0,2048.9,16.15991057]
[1742415517231,8.4e-06,2049.3,2049.2,5.66545]
[1742415517555,8.4e-06,2049.3,2049.2,7.508046]
[1742415518346,8.4e-06,2049.3,2049.2,11.54595494]
[1742415519152,8.4e-06,2049.3,2049.2,6.722546]
[1742415519359,8.4e-06,2049.3,2049.2,9.722546]
[1742415519876,0.8205084,2049.3,2049.2,3.0]
[1742415520827,0.8205084,2049.3,2049.2,7.87995]
[1742415521323,8.4e-06,2049.3,2049.2,7.87995]
[1742415524637,0.8103084,2049.3,2049.2,3.0]
[1742415524845,9.72793734,2049.3,2049.1,5.025]
[1742415525327,4.84821734,2049.3,2049.1,5.025]
[1742415525558,4.87995,2049.2,2048.9,3.0]
[1742415525731,4.87995,2049.2,2048.8,9.76142]
[1742415526057,4.87995,2049.2,2048.9,5.025]
[1742415526258,5.82199407,2049.3,2049.0,4.88034]
[1742415527060,1.78408513,2049.3,2049.0,4.88034]
[1742415527433,6.66387513,2049.3,2048.9,5.025]
[1742415527658,10.42758751,2049.2,2048.9,5.024]
[1742415527960,4.88051,2049.0,2048.6,7.88136]
[1742415528136,5.67298,2048.9,2048.7,3.0]
[1742415528343,5.67298,2048.9,2048.6,5.024]
[1742415528344,14.59176894,2048.9,2048.6,5.024]
[1742415528528,8.91913894,2048.7,2048.5,5.024]
[1742415528842,0.7923,2048.6,2048.5,5.024]
[1742415531564,5.67368,2048.6,2048.5,5.024]
[1742415531763,0.7923,2048.6,2048.5,5.024]
[1742415534365,5.67368,2048.6,2048.5,5.024]
[1742415534665,0.7923,2048.6,2048.5,5.024]
[1742415535774,5.67368,2048.6,2048.5,5.024]
[1742415535981,0.7923,2048.6,2048.5,5.024]
[1742415536269,6.31840039,2048.6,2048.0,5.24453275]
[1742415536437,4.882,2048.4,2048.1,12.90649]
[1742415536637,5.66416,2048.5,2048.1,7.88249]
[1742415536862,0.7825,2048.5,2048.2,4.88231]
[1742415537066,5.66421,2048.5,2048.1,7.88249]
[1742415537249,4.88121,2048.7,2048.3,4.88196]
[1742415537448,5.64961,2048.7,2048.3,9.76392]
[1742415537660,5.64961,2048.7,2048.4,4.88176]
[1742415537867,0.7684,2048.7,2048.4,4.88176]
[1742415538372,5.64968,2048.7,2048.4,9.90585]
[1742415538575,0.7684,2048.7,2048.4,14.78755]
[1742415538871,0.7684,2048.7,2048.5,4.88153]
[1742415539077,5.64963,2048.7,2048.4,9.90584]
[1742415539288,0.7684,2048.7,2048.5,3.0]
[1742415539448,0.7775,2049.0,2048.5,3.0]
[1742415539787,0.7775,2049.0,2048.9,4.88066]
[1742415539942,0.7775,2049.2,2048.9,4.88066]
[1742415540556,0.7775,2049.2,2048.9,9.76125]
[1742415540767,0.7775,2049.2,2048.9,4.88059]
[1742415541297,4.88032,2049.1,2048.8,5.024]
[1742415541666,5.65747,2049.2,2048.8,9.90483]
[1742415541851,5.65747,2049.2,2048.8,11.383427]
[1742415542048,0.7775,2049.2,2049.0,4.88042]
[1742415542271,8.4e-06,2049.3,2049.0,4.88042]
[1742415542487,4.8798884,2049.3,2048.9,8.67834]
[1742415542650,4.8798884,2049.3,2048.9,7.88064]
[1742415542853,4.8798884,2049.3,2048.9,9.8888707]
[1742415543178,4.8798884,2049.3,2048.9,9.8887607]
[1742415543383,0.7668,2049.0,2048.8,3.0]
[1742415543601,4.88078,2048.9,2048.7,3.0]
[1742415543751,5.64745,2049.0,2048.7,3.0]
[1742415543950,4.8809,2048.8,2048.7,3.0]
[1742415544150,5.64821,2048.6,2048.5,5.023]
[1742415544352,0.7668,2048.6,2048.5,5.023]
[1742415544552,0.7668,2048.6,2048.5,8.023]
[1742415545578,5.64818,2048.6,2048.5,8.023]
[1742415545899,0.7668,2048.6,2048.5,8.023]
[1742415546186,0.7668,2048.6,2048.5,12.90462]
[1742415546486,0.7668,2048.6,2048.5,8.023]
[1742415548896,5.64818,2048.6,2048.5,8.023]
[1742415549082,0.7668,2048.6,2048.5,8.023]
[1742415550403,0.7668,2048.6,2048.5,3.0]
[1742415550610,6.66004814,2048.6,2048.5,3.0]
[1742415551260,6.24931953,2048.6,2048.0,4.88277]
[1742415551489,4.88199,2048.4,2048.0,4.88277]
[1742415551687,6.24931953,2048.6,2048.1,5.022]
[1742415551966,6.24931953,2048.6,2048.0,3.0]
[1742415551967,5.64078,2048.3,2048.0,3.0]
[1742415552567,4.88159,2048.6,2048.1,4.88235]
[1742415552870,4.88173,2048.5,2048.1,4.88235]
[1742415553085,5.64153,2048.4,2048.0,7.88278]
[1742415553288,10.5236,2048.4,2048.1,3.0]
[1742415553508,11.97968252,2048.4,2048.1,3.0]
[1742415553683,4.88211,2048.3,2048.1,3.0]
[1742415553876,4.88211,2048.3,2048.0,3.0]
[1742415554267,4.88235,2048.2,2048.0,3.0]
[1742415554464,9.76488,2048.2,2047.9,3.0]
[1742415554798,5.64055,2048.1,2047.8,3.0]
[1742415555004,5.64055,2048.1,2047.8,8.022]
[1742415555602,5.64055,2048.1,2047.8,12.90526]
[1742415555773,0.7579,2048.1,2047.8,12.90526]
[1742415556508,0.7579,2048.1,2047.9,4.88293]
[1742415556680,10.54163,2048.3,2047.9,4.88293]
[1742415557303,4.88236,2048.2,2047.9,4.88293]
[1742415557808,5.65943,2048.3,2047.9,9.76579]
[1742415558179,0.7773,2048.3,2048.0,4.8828]
[1742415558517,5.68047,2048.5,2048.1,4.88247]
[1742415558707,10.5623,2048.5,2048.1,4.88247]
[1742415558880,0.7988,2048.5,2048.2,4.88224]
[1742415559274,5.68049,2048.5,2048.1,4.88247]
[1742415559484,5.68049,2048.5,2048.1,4.88244]
[1742415559720,7.14040052,2048.5,2048.0,4.88278]
[1742415559882,4.88197,2048.4,2048.0,4.88278]
[1742415560396,5.67996,2048.7,2048.4,4.88183]
[1742415560614,9.71718516,2048.7,2048.4,4.88183]
[1742415561118,9.71718516,2048.7,2048.3,4.882]
[1742415561412,9.71718516,2048.7,2048.3,4.88199]
[1742415561591,10.68890368,2048.7,2048.3,4.88199]
[1742415561791,10.68890368,2048.7,2048.3,4.88195]
[1742415562217,10.68890368,2048.7,2048.3,9.76391]
[1742415562623,4.88243,2048.2,2047.9,5.021]
[1742415562923,9.71250516,2048.1,2047.7,3.0]
[1742415563117,9.71250516,2048.1,2047.8,5.021]
[1742415563624,9.71250516,2048.1,2047.5,4.88391]
[1742415563625,8.92046516,2047.9,2047.5,4.88391]
[1742415563928,8.92046516,2047.9,2047.7,3.0]
[1742415564225,8.92046516,2047.9,2047.6,5.021]
[1742415564393,8.92046516,2047.9,2047.7,3.0]
[1742415565522,5.69742,2047.7,2047.3,11.77765]
[1742415565713,4.88386,2047.6,2047.3,6.06]
[1742415565888,4.88386,2047.6,2047.5,3.0]
[1742415566093,4.88386,2047.6,2047.4,5.021]
[1742415566094,4.884,2047.5,2047.4,5.021]
[1742415566441,4.88386,2047.6,2047.4,5.021]
[1742415566788,10.58117,2047.7,2047.4,5.021]
[1742415567288,10.58113,2047.7,2047.4,5.021]
[1742415567515,4.88382,2047.6,2047.4,5.021]
[1742415568037,9.73467516,2047.7,2047.4,5.021]
[1742415568038,5.69745,2047.7,2047.4,5.021]
[1742415569125,10.58118,2047.7,2047.4,5.021]
[1742415569325,5.69745,2047.7,2047.4,5.021]
[1742415570027,4.03722516,2047.9,2047.6,4.88376]
[1742415570198,4.86962516,2047.9,2047.6,4.88376]
[1742415570529,5.71545,2047.9,2047.6,4.88376]
[1742415570842,5.71545,2047.9,2047.5,9.76768]
[1742415571128,4.03722516,2047.8,2047.4,9.90508]
[1742415571298,14.29113768,2047.8,2047.4,9.90508]
[1742415571628,14.29113768,2047.8,2047.4,9.89605]
[1742415571930,4.88357,2047.7,2047.4,9.89605]
[1742415572114,4.88352,2047.7,2047.4,5.01197]
[1742415572334,0.8007,2047.5,2047.4,8.01197]
[1742415572512,0.8007,2047.5,2047.4,5.01197]
[1742415573243,0.8007,2047.5,2047.3,6.06]
[1742415573447,8.92146516,2047.4,2047.3,6.06]
[1742415573630,4.88457,2047.3,2047.1,5.02]
[1742415573945,9.76917,2047.3,2047.1,3.0]
[1742415574161,4.88457,2047.3,2047.1,3.0]
[1742415574346,4.03722516,2047.2,2046.8,5.65131]
[1742415574515,1.46067452,2047.3,2046.8,5.65131]
[1742415574516,4.03722516,2047.0,2046.8,8.02]
[1742415574716,4.03722516,2047.0,2046.8,5.02]
[1742415575016,8.92243516,2047.0,2046.8,5.02]
[1742415575238,8.92243516,2047.0,2046.5,10.94632]
[1742415575239,4.88555,2046.9,2046.5,10.94632]
[1742415575434,9.77117,2046.9,2046.6,5.02]
[1742415575750,4.88567,2046.8,2046.6,5.02]
[1742415575950,1.45974952,2046.9,2046.6,5.02]
[1742415575951,6.34525952,2046.9,2046.6,5.02]
[1742415576245,1.45974952,2046.9,2046.5,15.96721]
[1742415576425,1.45974952,2046.9,2046.6,4.88597]
[1742415576747,6.34519952,2046.9,2046.6,4.88597]
[1742415577068,6.34519952,2046.9,2046.6,3.0]
[1742415577215,10.44980063,2046.8,2046.5,5.021]
[1742415577410,10.44980063,2046.8,2046.2,11.69769]
[1742415577411,4.88625,2046.6,2046.2,11.69769]
[1742415577615,4.03722516,2046.4,2046.1,4.88727]
[1742415577848,4.03722516,2046.6,2046.1,5.02]
[1742415578147,4.67493522,2046.6,2046.2,9.77404]
[1742415578350,9.56109522,2046.6,2046.3,4.88686]
[1742415578712,4.67493522,2046.6,2046.2,4.88694]
[1742415578916,4.67493522,2046.6,2046.3,4.88685]
[1742415579340,4.67493522,2046.6,2046.3,4.88681]
[1742415579538,4.67493522,2046.6,2046.3,4.88676]
[1742415579740,4.67493522,2046.6,2046.4,4.88652]
[1742415580249,4.03722516,2046.6,2046.4,4.88652]
[1742415580438,0.8131,2046.7,2046.4,4.88652]
[1742415580945,0.8131,2046.7,2046.4,4.8866]
[1742415581149,4.88591,2046.7,2046.5,5.021]
[1742415581449,4.03722516,2046.6,2046.5,5.021]
[1742415581618,8.92337516,2046.6,2046.5,5.021]
[1742415581821,10.30430368,2046.6,2046.5,5.021]
[1742415582259,5.41815368,2046.6,2046.5,5.021]
[1742415582846,8.92292516,2046.8,2046.5,9.90739]
[1742415583050,4.88594,2046.7,2046.5,5.021]
[1742415583734,9.77204,2046.7,2046.5,5.021]
[1742415583919,8.92337516,2046.6,2046.5,5.021]
[1742415584634,9.71147516,2046.6,2046.5,5.021]
[1742415584934,11.17121668,2046.6,2046.5,5.021]
[1742415586219,11.17121668,2046.6,2046.3,4.88677]
[1742415586630,16.05754668,2046.6,2046.3,3.0]
[1742415586833,16.05754668,2046.6,2046.2,11.081]
[1742415586834,4.88648,2046.5,2046.2,11.081]
[1742415587222,6.49224967,2046.5,2046.2,11.081]
[1742415587550,6.49224967,2046.5,2046.2,5.021]
[1742415587947,4.03722516,2046.8,2046.2,5.021]
[1742415588149,4.88599,2046.7,2046.3,4.88667]
[1742415588330,4.88599,2046.7,2046.4,4.88659]
[1742415588527,9.68195516,2046.8,2046.4,4.88659]
[1742415588733,4.88616,2046.6,2046.3,4.88667]
[1742415588941,6.34274152,2046.7,2046.3,9.77341]
[1742415589152,6.34274152,2046.7,2046.4,4.8866]
[1742415589456,11.22886152,2046.7,2046.3,4.88667]
[1742415589660,4.88618,2046.6,2046.3,4.88667]
[1742415590118,6.34274152,2046.7,2046.4,4.88649]
[1742415591532,9.68192516,2046.8,2046.5,4.88634]
[1742415591729,4.79622516,2046.8,2046.5,4.88627]
[1742415591935,4.79622516,2046.8,2046.5,9.77251]
[1742415592771,4.79622516,2046.8,2046.5,4.88624]
[1742415592921,9.68060516,2047.0,2046.6,4.88593]
[1742415593127,0.7581,2047.0,2046.9,4.88543]
[1742415593478,0.7581,2047.2,2046.9,4.88536]
[1742415593954,0.7581,2047.2,2046.9,9.77065]
[1742415594149,5.64283,2047.2,2046.9,4.88529]
[1742415594355,0.7581,2047.2,2046.9,4.88529]
[1742415595252,1.72608052,2047.2,2046.9,4.88529]
[1742415595429,6.61087052,2047.2,2046.9,4.88529]
[1742415596964,1.72608052,2047.2,2046.9,4.88529]
[1742415598074,6.61081052,2047.2,2046.9,4.88529]
[1742415598283,4.03722516,2047.0,2046.7,6.06]